[Event "EYCC Girls-U18 2019"]
[Site "Bratislava"]
[Date "2019.08.10"]
[Round "9.1"]
[White "Badelka, Olga"]
[Black "Goltseva, Ekaterina"]
[Result "1/2-1/2"]
[ECO "A05"]
[WhiteElo "2386"]
[BlackElo "2304"]
[Annotator "NA"]
[PlyCount "149"]
[EventDate "2019.08.02"]
[EventType "swiss"]
[EventCountry "SVK"]
[SourceTitle "playchess.com"]
[Source "ChessBase"]
[SourceQuality "1"]
[TimeControl "40/5400+30:1800+30"]

1. Nf3 {[%emt 0:00:00]} Nf6 {[%emt 0:00:00]} 2. c4 {[%emt 0:00:00]} e6 {[%emt 0:00:26]} 3. g3 {[%emt 0:00:16]} d5 {[%emt 0:00:49]} 4. Bg2 {[%emt 0:00:15]} c5 {[%emt 0:01:24]} 5. cxd5 {[%emt 0:01:08]} Nxd5 {[%emt 0:01:27]} 6. d4 {[%emt 0:03:16]} cxd4 {[%emt 0:03:07]} 7. O-O {[%emt 0:02:03]} Be7 {[%emt 0:03:29]} 8. Nxd4 {[%emt 0:00:31]} O-O {[%emt 0:01:30]} 9. e4 {[%emt 0:05:14]} Nb4 {[%emt 0:02:08]} 10. Nc3 {[%emt 0:01:03]} N8c6 {[%emt 0:07:13]} 11. Nxc6 {[%emt 0:00:47]} bxc6 {[%emt 0:02:58]} 12. Qa4 {[%emt 0:03:58]} Qc7 {[%emt 0:06:05]} 13. Rd1 {[%emt 0:06:16]} a5 {[%emt 0:03:33]} 14. a3 {[%emt 0:06:39]} Na6 {[%emt 0:02:35]} 15. e5 {[%emt 0:07:50]} Bb7 {[%emt 0:05:53]} 16. Ne4 {[%emt 0:03:12]} Rfd8 {[%emt 0:07:43]} 17. Bf4 {[%emt 0:03:52]} Qb6 {[%emt 0:17:31]} 18. Nd6 {[%emt 0:02:21]} Nc5 {[%emt 0:02:43]} 19. Qd4 {[%emt 0:01:01]} Bxd6 {[%emt 0:00:46]} 20. exd6 {[%emt 0:00:04]} Nd7 {[%emt 0:00:17]} 21. Qc3 {[%emt 0:10:00]} c5 {[%emt 0:02:07]} 22. f3 {[%emt 0:01:32]} Bd5 {[%emt 0:01:29]} 23. Rac1 {[%emt 0:02:28]} a4 {[%emt 0:03:03]} 24. Rd2 {[%emt 0:02:54]} Qb7 {[%emt 0:04:15]} 25. Be3 {[%emt 0:05:13]} Rdc8 {[%emt 0:00:33]} 26. f4 {[%emt 0:03:52]} Ra6 {[%emt 0:03:54]} 27. Qc2 {[%emt 0:04:43]} Qa8 {[%emt 0:01:21]} 28. Qd1 {[%emt 0:04:27]} Rxd6 {[%emt 0:11:22]} 29. Rc4 {[%emt 0:00:13]} Nf6 {[%emt 0:01:04]} 30. Qxa4 {[%emt 0:04:48]} Ra6 {[%emt 0:00:23]} 31. Qd1 {[%emt 0:00:12]} Rac6 {[%emt 0:00:47]} 32. Rc1 {[%emt 0:03:18]} h6 {[%emt 0:00:35]} 33. Qc2 {[%emt 0:02:08]} Qb7 {[%emt 0:02:08]} 34. Rcd1 {[%emt 0:01:27]} Qb5 {[%emt 0:00:44]} 35. f5 {[%emt 0:02:49]} R6c7 {[%emt 0:00:51]} 36. fxe6 {[%emt 0:03:06]} fxe6 {[%emt 0:00:04]} 37. Qg6 {[%emt 0:00:48]} Qe8 {[%emt 0:00:20]} 38. Qxe8+ {[%emt 0:02:08]} Rxe8 {[%emt 0:00:03]} 39. Rc1 {[%emt 0:00:17]} Rec8 {[%emt 0:01:04]} 40. Rdc2 {[%emt 0:00:00]} Bxg2 {[%emt 0:00:00]} 41. Kxg2 {[%emt 0:05:07]} Nd5 {[%emt 0:02:59]} 42. Bd2 {[%emt 0:02:03]} Rb8 {[%emt 0:14:47]} 43. a4 {[%emt 0:06:22]} Rcb7 {[%emt 0:01:36]} 44. Rxc5 {[%emt 0:02:54]} Rxb2 {[%emt 0:00:05]} 45. R1c2 {[%emt 0:00:03]} Kf7 {[%emt 0:01:56]} 46. a5 {[%emt 0:02:22]} Ke7 {[%emt 0:00:33]} 47. Kf3 {[%emt 0:04:34]} R2b3+ {[%emt 0:02:47]} 48. Ke2 {[%emt 0:00:07]} Ra3 {[%emt 0:00:40]} 49. Rc8 {[%emt 0:01:08]} Rb1 {[%emt 0:01:11]} 50. Rc1 {[%emt 0:05:55]} Rb2 {[%emt 0:00:32]} 51. R8c2 {[%emt 0:00:04]} Rb8 {[%emt 0:01:40]} 52. Rf1 {[%emt 0:00:16]} Rb7 {[%emt 0:01:34]} 53. Rf3 {[%emt 0:00:34]} Ra1 {[%emt 0:00:33]} 54. h4 {[%emt 0:01:42]} Rbb1 {[%emt 0:02:13]} 55. Rc8 {[%emt 0:07:22]} Rb2 {[%emt 0:02:41]} 56. Rg8 {[%emt 0:00:03]} Rxa5 {[%emt 0:00:53]} 57. Rxg7+ {[%emt 0:00:03]} Kd6 {[%emt 0:00:14]} 58. Rd3 {[%emt 0:00:26]} Ra1 {[%emt 0:02:16]} 59. Kf3 {[%emt 0:01:10]} Ke5 {[%emt 0:00:58]} 60. Bc3+ {[%emt 0:01:03]} Nxc3 {[%emt 0:00:05]} 61. Rxc3 {[%emt 0:00:02]} Rf1+ {[%emt 0:01:07]} 62. Kg4 {[%emt 0:00:24]} Rb4+ {[%emt 0:01:04]} 63. Kh5 {[%emt 0:00:27]} Kd4 {[%emt 0:00:32]} 64. Rcc7 {[%emt 0:00:42]} e5 {[%emt 0:00:15]} 65. Rcd7+ {[%emt 0:00:43]} Kc3 {[%emt 0:01:02]} 66. Kxh6 {[%emt 0:00:28]} e4 {[%emt 0:00:06]} 67. Rge7 {[%emt 0:00:27]} Rg1 {[%emt 0:00:16]} 68. h5 {[%emt 0:00:47]} Rxg3 {[%emt 0:00:07]} 69. Kh7 {[%emt 0:00:20]} e3 {[%emt 0:00:50]} 70. h6 {[%emt 0:00:04]} Rb6 {[%emt 0:00:27]} 71. Rg7 {[%emt 0:00:56]} Rh3 {[%emt 0:00:30]} 72. Rg6 {[%emt 0:00:03]} Rxg6 {[%emt 0:00:59]} 73. Kxg6 {[%emt 0:00:01]} e2 {[%emt 0:00:08]} 74. Re7 {[%emt 0:00:04]} Kd2 {[%emt 0:00:08]} 75. Rxe2+ {[%emt 0:00:15]} 1/2-1/2

[Event "EYCC Girls-U18 2019"]
[Site "Bratislava"]
[Date "2019.08.10"]
[Round "9.2"]
[White "Sliwicka, Alicja"]
[Black "Grigorieva, Yulia"]
[Result "1-0"]
[ECO "B19"]
[WhiteElo "2261"]
[BlackElo "2096"]
[Annotator "NA"]
[PlyCount "79"]
[EventDate "2019.08.02"]
[EventType "swiss"]
[EventCountry "SVK"]
[SourceTitle "playchess.com"]
[Source "ChessBase"]
[SourceQuality "1"]
[TimeControl "40/5400+30:1800+30"]

1. e4 {[%emt 0:00:00]} c6 {[%emt 0:00:00]} 2. d4 {[%emt 0:00:00]} d5 {[%emt 0:00:00]} 3. Nc3 {[%emt 0:00:00]} dxe4 {[%emt 0:00:00]} 4. Nxe4 {[%emt 0:00:00]} Bf5 {[%emt 0:00:00]} 5. Ng3 {[%emt 0:00:00]} Bg6 {[%emt 0:00:00]} 6. h4 {[%emt 0:00:07]} h6 {[%emt 0:00:10]} 7. Nf3 {[%emt 0:00:15]} Nd7 {[%emt 0:00:33]} 8. h5 {[%emt 0:00:16]} Bh7 {[%emt 0:00:07]} 9. Bd3 {[%emt 0:00:06]} Bxd3 {[%emt 0:00:11]} 10. Qxd3 {[%emt 0:00:07]} e6 {[%emt 0:00:28]} 11. Bd2 {[%emt 0:00:12]} Ngf6 {[%emt 0:01:11]} 12. O-O-O {[%emt 0:00:17]} Be7 {[%emt 0:00:39]} 13. Kb1 {[%emt 0:00:09]} O-O {[%emt 0:00:46]} 14. Ne4 {[%emt 0:00:11]} Nxe4 {[%emt 0:01:11]} 15. Qxe4 {[%emt 0:00:08]} Nf6 {[%emt 0:00:14]} 16. Qe2 {[%emt 0:00:09]} Qd5 {[%emt 0:01:20]} 17. Rhg1 {[%emt 0:00:09]} Qb5 {[%emt 0:10:58]} 18. Qxb5 {[%emt 0:13:11]} cxb5 {[%emt 0:00:06]} 19. g4 {[%emt 0:01:54]} Ne4 {[%emt 0:10:01]} 20. Be3 {[%emt 0:01:53]} Rfd8 {[%emt 0:08:43]} 21. Ne5 {[%emt 0:02:36]} Rac8 {[%emt 0:06:02]} 22. f4 {[%emt 0:04:07]} Nf6 {[%emt 0:10:55]} 23. Rg2 {[%emt 0:03:59]} Nd5 {[%emt 0:07:07]} 24. Bc1 {[%emt 0:01:16]} Bd6 {[%emt 0:05:58]} 25. Rdg1 {[%emt 0:12:49]} Ne7 {[%emt 0:08:43]} 26. f5 {[%emt 0:21:43]} Bxe5 {[%emt 0:07:24]} 27. dxe5 {[%emt 0:00:17]} Kh7 {[%emt 0:02:21]} 28. Rf2 {[%emt 0:06:02]} Nd5 {[%emt 0:04:46]} 29. g5 {[%emt 0:02:26]} hxg5 {[%emt 0:04:10]} 30. Bxg5 {[%emt 0:01:38]} f6 {[%emt 0:03:41]} 31. Bc1 {[%emt 0:01:27]} fxe5 {[%emt 0:04:34]} 32. fxe6 {[%emt 0:00:37]} Rf8 {[%emt 0:00:45]} 33. Rfg2 {[%emt 0:03:37]} Rc7 {[%emt 0:02:25]} 34. h6 {[%emt 0:02:01]} gxh6 {[%emt 0:00:46]} 35. Bxh6 {[%emt 0:01:12]} Rf6 {[%emt 0:00:36]} 36. Bf8 {[%emt 0:01:29]} Kh8 {[%emt 0:00:33]} 37. e7 {[%emt 0:01:30]} Rxe7 {[%emt 0:00:30]} 38. Bxe7 {[%emt 0:00:13]} Rf7 {[%emt 0:00:18]} 39. Bd6 {[%emt 0:00:24]} Nf6 {[%emt 0:00:27]} 40. Bxe5 {[%emt 0:00:00]} 1-0

[Event "EYCC Girls-U18 2019"]
[Site "Bratislava"]
[Date "2019.08.10"]
[Round "9.3"]
[White "Schneider, Jana"]
[Black "Muetsch, Annmarie"]
[Result "1/2-1/2"]
[ECO "B32"]
[WhiteElo "2216"]
[BlackElo "2266"]
[Annotator "NA"]
[PlyCount "82"]
[EventDate "2019.08.02"]
[EventType "swiss"]
[EventCountry "SVK"]
[SourceTitle "playchess.com"]
[Source "ChessBase"]
[SourceQuality "1"]
[TimeControl "40/5400+30:1800+30"]

1. e4 {[%emt 0:00:00]} c5 {[%emt 0:00:00]} 2. Nf3 {[%emt 0:00:00]} Nc6 {[%emt 0:00:00]} 3. d4 {[%emt 0:00:00]} cxd4 {[%emt 0:00:00]} 4. Nxd4 {[%emt 0:00:00]} e5 {[%emt 0:00:00]} 5. Nb5 {[%emt 0:00:05]} d6 {[%emt 0:00:02]} 6. c4 {[%emt 0:00:32]} Be7 {[%emt 0:00:08]} 7. N1c3 {[%emt 0:00:08]} a6 {[%emt 0:00:07]} 8. Na3 {[%emt 0:00:05]} f5 {[%emt 0:00:04]} 9. exf5 {[%emt 0:04:46]} Bxf5 {[%emt 0:00:07]} 10. Bd3 {[%emt 0:00:33]} Be6 {[%emt 0:00:05]} 11. Nc2 {[%emt 0:02:39]} Nf6 {[%emt 0:00:44]} 12. O-O {[%emt 0:01:03]} O-O {[%emt 0:00:09]} 13. Ne3 {[%emt 0:03:07]} Nd4 {[%emt 0:00:40]} 14. Ncd5 {[%emt 0:07:25]} Nxd5 {[%emt 0:19:24]} 15. Nxd5 {[%emt 0:00:45]} Bxd5 {[%emt 0:06:05]} 16. cxd5 {[%emt 0:11:05]} g6 {[%emt 0:05:22]} 17. Qg4 {[%emt 0:08:45]} Qc8 {[%emt 0:04:59]} 18. Qxc8 {[%emt 0:05:23]} Raxc8 {[%emt 0:00:07]} 19. Bd2 {[%emt 0:00:20]} Rc5 {[%emt 0:29:44]} 20. Bb4 {[%emt 0:02:13]} Rc7 {[%emt 0:00:05]} 21. Ba5 {[%emt 0:01:06]} Rc5 {[%emt 0:00:16]} 22. Bb4 {[%emt 0:00:41]} Rc7 {[%emt 0:01:03]} 23. Rac1 {[%emt 0:00:27]} Rfc8 {[%emt 0:01:09]} 24. Rxc7 {[%emt 0:01:19]} Rxc7 {[%emt 0:00:04]} 25. f4 {[%emt 0:01:36]} e4 {[%emt 0:10:18]} 26. Bb1 {[%emt 0:10:49]} Ne2+ {[%emt 0:03:03]} 27. Kh1 {[%emt 0:02:59]} Nxf4 {[%emt 0:01:48]} 28. Bxe4 {[%emt 0:05:41]} Rc4 {[%emt 0:00:35]} 29. Bd2 {[%emt 0:03:52]} Rxe4 {[%emt 0:04:44]} 30. Rxf4 {[%emt 0:00:19]} Re5 {[%emt 0:02:08]} 31. Rd4 {[%emt 0:01:21]} Re2 {[%emt 0:00:28]} 32. Rd3 {[%emt 0:03:53]} Bg5 {[%emt 0:04:57]} 33. Bc3 {[%emt 0:01:02]} Bf6 {[%emt 0:00:46]} 34. Kg1 {[%emt 0:00:51]} Bxc3 {[%emt 0:00:08]} 35. Rxc3 {[%emt 0:03:55]} Rxb2 {[%emt 0:00:10]} 36. a4 {[%emt 0:00:18]} Kf7 {[%emt 0:04:12]} 37. Rc7+ {[%emt 0:00:30]} Kf6 {[%emt 0:00:10]} 38. Rxh7 {[%emt 0:00:13]} b5 {[%emt 0:00:56]} 39. Ra7 {[%emt 0:03:57]} bxa4 {[%emt 0:02:08]} 40. Rxa6 {[%emt 0:00:00]} Ke5 {[%emt 0:00:00]} 41. Rxa4 {[%emt 0:00:18]} Rd2 {[%emt 0:05:43]} 1/2-1/2

[Event "EYCC Girls-U18 2019"]
[Site "Bratislava"]
[Date "2019.08.10"]
[Round "9.4"]
[White "Kochukova, Anna"]
[Black "Sargsyan, Anna M."]
[Result "0-1"]
[ECO "B17"]
[WhiteElo "2148"]
[BlackElo "2229"]
[Annotator "NA"]
[PlyCount "82"]
[EventDate "2019.08.02"]
[EventType "swiss"]
[EventCountry "SVK"]
[SourceTitle "playchess.com"]
[Source "ChessBase"]
[SourceQuality "1"]
[TimeControl "40/5400+30:1800+30"]

1. e4 {[%emt 0:00:00]} c6 {[%emt 0:00:00]} 2. d4 {[%emt 0:00:00]} d5 {[%emt 0:00:00]} 3. Nd2 {[%emt 0:00:00]} dxe4 {[%emt 0:00:01]} 4. Nxe4 {[%emt 0:00:01]} Nd7 {[%emt 0:00:15]} 5. Ng5 {[%emt 0:00:23]} Ngf6 {[%emt 0:00:52]} 6. Bd3 {[%emt 0:00:25]} e6 {[%emt 0:00:13]} 7. N1f3 {[%emt 0:00:12]} Bd6 {[%emt 0:00:43]} 8. Qe2 {[%emt 0:00:19]} h6 {[%emt 0:00:07]} 9. Ne4 {[%emt 0:00:18]} Nxe4 {[%emt 0:00:05]} 10. Qxe4 {[%emt 0:00:09]} Nf6 {[%emt 0:00:04]} 11. Qe2 {[%emt 0:00:43]} Qc7 {[%emt 0:00:07]} 12. Bd2 {[%emt 0:00:25]} b6 {[%emt 0:00:05]} 13. O-O-O {[%emt 0:03:50]} Bb7 {[%emt 0:00:24]} 14. Kb1 {[%emt 0:03:54]} O-O-O {[%emt 0:00:13]} 15. c4 {[%emt 0:00:19]} Kb8 {[%emt 0:03:30]} 16. Bc3 {[%emt 0:02:28]} Ka8 {[%emt 0:05:08]} 17. Ne5 {[%emt 0:08:28]} c5 {[%emt 0:02:47]} 18. dxc5 {[%emt 0:01:47]} Bxc5 {[%emt 0:00:40]} 19. Bc2 {[%emt 0:17:08]} h5 {[%emt 0:05:46]} 20. f4 {[%emt 0:03:06]} Rc8 {[%emt 0:04:11]} 21. Rd2 {[%emt 0:14:27]} b5 {[%emt 0:05:44]} 22. cxb5 {[%emt 0:09:37]} Nd5 {[%emt 0:00:46]} 23. Be4 {[%emt 0:11:30]} f6 {[%emt 0:07:59]} 24. Bxd5 {[%emt 0:06:39]} exd5 {[%emt 0:03:08]} 25. Nc6 {[%emt 0:05:43]} Qxf4 {[%emt 0:01:49]} 26. Rxd5 {[%emt 0:02:00]} Bb6 {[%emt 0:01:14]} 27. Bd2 {[%emt 0:05:09]} Qc7 {[%emt 0:01:32]} 28. Rxh5 {[%emt 0:03:08]} Rhe8 {[%emt 0:01:09]} 29. Qf3 {[%emt 0:01:09]} Qf7 {[%emt 0:03:13]} 30. Rc1 {[%emt 0:00:41]} g5 {[%emt 0:03:12]} 31. Rh6 {[%emt 0:00:46]} Qd7 {[%emt 0:01:46]} 32. Bc3 {[%emt 0:00:28]} g4 {[%emt 0:00:19]} 33. Qxf6 {[%emt 0:00:36]} Be3 {[%emt 0:00:39]} 34. Rh1 {[%emt 0:00:40]} Qd3+ {[%emt 0:01:43]} 35. Ka1 {[%emt 0:00:02]} Rf8 {[%emt 0:00:17]} 36. Qxf8 Rxf8 {[%emt 0:00:05]} 37. Rh8 {[%emt 0:01:23]} Rxh8 {[%emt 0:00:18]} 38. Bxh8 {[%emt 0:00:02]} Qxb5 {[%emt 0:00:11]} 39. Nd8 {[%emt 0:00:00]} Bxg2 {[%emt 0:00:00]} 40. Rd1 {[%emt 0:00:00]} Qe2 {[%emt 0:00:00]} 41. Rb1 {[%emt 0:02:14]} Be4 {[%emt 0:01:05]} 0-1

[Event "EYCC Girls-U18 2019"]
[Site "Bratislava"]
[Date "2019.08.10"]
[Round "9.5"]
[White "Palma, Maria"]
[Black "Radeva, Viktoria"]
[Result "0-1"]
[ECO "A13"]
[WhiteElo "2137"]
[BlackElo "2247"]
[Annotator "NA"]
[PlyCount "104"]
[EventDate "2019.08.02"]
[EventType "swiss"]
[EventCountry "SVK"]
[SourceTitle "playchess.com"]
[Source "ChessBase"]
[SourceQuality "1"]
[TimeControl "40/5400+30:1800+30"]

1. c4 {[%emt 0:00:00]} e6 {[%emt 0:00:00]} 2. Nf3 {[%emt 0:00:00]} d5 {[%emt 0:00:00]} 3. g3 {[%emt 0:00:00]} Nf6 {[%emt 0:01:00]} 4. Bg2 {[%emt 0:00:09]} d4 {[%emt 0:02:30]} 5. O-O {[%emt 0:02:11]} c5 {[%emt 0:00:41]} 6. b4 {[%emt 0:04:24]} cxb4 {[%emt 0:01:04]} 7. a3 {[%emt 0:06:09]} bxa3 {[%emt 0:06:41]} 8. d3 {[%emt 0:00:56]} Nc6 {[%emt 0:00:49]} 9. Qb3 {[%emt 0:07:03]} Be7 {[%emt 0:03:20]} 10. Bxa3 {[%emt 0:00:51]} O-O {[%emt 0:00:41]} 11. Bxe7 {[%emt 0:06:05]} Qxe7 {[%emt 0:00:21]} 12. Na3 {[%emt 0:01:27]} e5 {[%emt 0:09:05]} 13. Nd2 {[%emt 0:03:53]} Nd7 {[%emt 0:14:56]} 14. Rfb1 {[%emt 0:08:59]} Nc5 {[%emt 0:04:11]} 15. Qc2 {[%emt 0:03:31]} Bf5 {[%emt 0:06:15]} 16. Nb3 {[%emt 0:12:12]} Na6 {[%emt 0:06:18]} 17. Rb2 {[%emt 0:15:40]} Nab4 {[%emt 0:03:08]} 18. Qb1 {[%emt 0:01:43]} Rab8 {[%emt 0:08:35]} 19. Nc2 {[%emt 0:03:45]} Nxc2 {[%emt 0:02:28]} 20. Qxc2 {[%emt 0:00:43]} Rfe8 {[%emt 0:02:36]} 21. Nd2 {[%emt 0:00:40]} Bg4 {[%emt 0:03:16]} 22. Qb1 {[%emt 0:04:23]} Qc7 {[%emt 0:02:40]} 23. Kf1 {[%emt 0:05:41]} b6 {[%emt 0:02:19]} 24. Qc2 {[%emt 0:04:29]} a5 {[%emt 0:02:40]} 25. Nb1 {[%emt 0:01:19]} Nb4 {[%emt 0:00:28]} 26. Qd2 {[%emt 0:00:31]} Bd7 {[%emt 0:02:07]} 27. Na3 {[%emt 0:00:47]} Ba4 {[%emt 0:04:44]} 28. Kg1 {[%emt 0:02:17]} Rec8 {[%emt 0:01:19]} 29. Bh3 {[%emt 0:00:38]} Rd8 {[%emt 0:01:38]} 30. Bg2 {[%emt 0:00:05]} Qc5 {[%emt 0:00:47]} 31. h4 {[%emt 0:01:00]} Rdc8 {[%emt 0:00:30]} 32. Kh2 {[%emt 0:01:01]} f5 {[%emt 0:03:11]} 33. Qg5 {[%emt 0:00:53]} Rf8 {[%emt 0:00:16]} 34. h5 {[%emt 0:01:01]} h6 {[%emt 0:00:54]} 35. Qd2 {[%emt 0:01:10]} Qe7 {[%emt 0:00:38]} 36. Kg1 {[%emt 0:01:07]} Rbd8 {[%emt 0:01:19]} 37. f3 {[%emt 0:00:18]} Qe8 {[%emt 0:01:16]} 38. Nb1 {[%emt 0:00:34]} Bc6 {[%emt 0:00:35]} 39. c5 {[%emt 0:00:37]} e4 {[%emt 0:02:19]} 40. cxb6 {[%emt 0:00:00]} e3 {[%emt 0:00:00]} 41. Qd1 {[%emt 0:04:45]} Ra8 {[%emt 0:07:21]} 42. Na3 {[%emt 0:02:57]} f4 {[%emt 0:10:51]} 43. g4 {[%emt 0:04:01]} Bd5 {[%emt 0:00:49]} 44. Nc4 {[%emt 0:03:56]} Qb5 {[%emt 0:01:29]} 45. b7 {[%emt 0:03:03]} Bxb7 {[%emt 0:05:28]} 46. Rxa5 {[%emt 0:04:27]} Rxa5 {[%emt 0:00:07]} 47. Nxa5 {[%emt 0:00:08]} Qxa5 {[%emt 0:04:51]} 48. Qb1 {[%emt 0:06:33]} Nd5 {[%emt 0:01:33]} 49. Rxb7 {[%emt 0:00:14]} Nc3 {[%emt 0:00:40]} 50. Qb3+ {[%emt 0:00:29]} Kh8 {[%emt 0:00:14]} 51. Bf1 {[%emt 0:00:23]} Nxe2+ {[%emt 0:00:28]} 52. Bxe2 {[%emt 0:01:09]} Qe1+ {[%emt 0:00:03]} 0-1

[Event "EYCC Girls-U18 2019"]
[Site "Bratislava"]
[Date "2019.08.10"]
[Round "9.6"]
[White "Afonasieva, Anna"]
[Black "Kucharska, Honorata"]
[Result "1-0"]
[ECO "A43"]
[WhiteElo "2370"]
[BlackElo "2054"]
[Annotator "NA"]
[PlyCount "213"]
[EventDate "2019.08.02"]
[EventType "swiss"]
[EventCountry "SVK"]
[SourceTitle "playchess.com"]
[Source "ChessBase"]
[SourceQuality "1"]
[TimeControl "40/5400+30:1800+30"]

1. d4 {[%emt 0:00:00]} Nf6 {[%emt 0:00:00]} 2. Nf3 {[%emt 0:00:00]} c5 {[%emt 0:00:00]} 3. d5 {[%emt 0:00:00]} e6 {[%emt 0:00:00]} 4. Nc3 {[%emt 0:00:26]} exd5 {[%emt 0:00:35]} 5. Nxd5 {[%emt 0:00:05]} Nxd5 {[%emt 0:00:32]} 6. Qxd5 {[%emt 0:00:05]} d6 {[%emt 0:01:01]} 7. e4 {[%emt 0:02:50]} Be7 {[%emt 0:04:38]} 8. Bc4 {[%emt 0:06:07]} O-O {[%emt 0:00:50]} 9. O-O {[%emt 0:00:59]} Nc6 {[%emt 0:02:00]} 10. Qh5 {[%emt 0:04:39]} Be6 {[%emt 0:06:12]} 11. Bxe6 {[%emt 0:11:36]} fxe6 {[%emt 0:02:29]} 12. Bg5 {[%emt 0:03:01]} Nd4 {[%emt 0:08:51]} 13. Bxe7 {[%emt 0:02:49]} Nxf3+ {[%emt 0:00:25]} 14. Qxf3 {[%emt 0:00:17]} Qxe7 {[%emt 0:00:08]} 15. Qb3 {[%emt 0:01:22]} Rad8 {[%emt 0:10:12]} 16. Rad1 {[%emt 0:01:10]} Qf7 {[%emt 0:02:15]} 17. c4 {[%emt 0:00:26]} e5 {[%emt 0:08:23]} 18. Rd5 {[%emt 0:02:20]} b6 {[%emt 0:01:18]} 19. f3 {[%emt 0:01:56]} h5 {[%emt 0:03:43]} 20. Qd3 {[%emt 0:02:04]} Qe7 {[%emt 0:00:41]} 21. f4 {[%emt 0:12:02]} exf4 {[%emt 0:17:18]} 22. Rxh5 {[%emt 0:00:35]} g6 {[%emt 0:00:02]} 23. Rd5 {[%emt 0:01:55]} Kg7 {[%emt 0:07:01]} 24. Rd1 {[%emt 0:02:51]} Rde8 {[%emt 0:04:09]} 25. Re1 {[%emt 0:21:07]} Rf6 {[%emt 0:00:42]} 26. Qc3 {[%emt 0:01:48]} Kg8 {[%emt 0:00:20]} 27. Qf3 {[%emt 0:02:03]} Re6 {[%emt 0:02:15]} 28. Qg4 {[%emt 0:03:46]} Qf6 {[%emt 0:00:24]} 29. Rf5 {[%emt 0:06:58]} Qd4+ {[%emt 0:03:11]} 30. Kh1 {[%emt 0:00:41]} Rxe4 {[%emt 0:03:59]} 31. Qxg6+ {[%emt 0:00:54]} Qg7 {[%emt 0:00:02]} 32. Qxe8+ {[%emt 0:00:22]} Rxe8 {[%emt 0:00:02]} 33. Rxe8+ {[%emt 0:00:08]} Kh7 {[%emt 0:00:02]} 34. Rxf4 {[%emt 0:03:02]} Qxb2 {[%emt 0:00:27]} 35. g3 {[%emt 0:00:35]} Qxa2 {[%emt 0:04:17]} 36. Re7+ {[%emt 0:01:01]} Kg8 {[%emt 0:01:08]} 37. Ref7 {[%emt 0:02:28]} Qa1+ {[%emt 0:04:02]} 38. Kg2 {[%emt 0:00:21]} Qb2+ {[%emt 0:00:48]} 39. Rf2 {[%emt 0:00:20]} Qe5 {[%emt 0:00:32]} 40. R7f5 {[%emt 0:00:00]} Qe4+ {[%emt 0:00:00]} 41. Kh3 {[%emt 0:02:44]} Kg7 {[%emt 0:04:45]} 42. R2f4 {[%emt 0:02:34]} Qe6 {[%emt 0:00:50]} 43. g4 {[%emt 0:11:30]} a5 {[%emt 0:01:43]} 44. Kh4 {[%emt 0:04:34]} a4 {[%emt 0:02:38]} 45. Rf3 {[%emt 0:01:50]} Qe1+ {[%emt 0:02:31]} 46. Kg5 {[%emt 0:01:28]} Qe7+ {[%emt 0:00:38]} 47. Kf4 {[%emt 0:00:22]} Qe1 {[%emt 0:02:04]} 48. Rg5+ {[%emt 0:01:52]} Kf6 {[%emt 0:00:04]} 49. Rd5 {[%emt 0:00:08]} a3 {[%emt 0:01:40]} 50. Rxd6+ {[%emt 0:05:11]} Ke7 {[%emt 0:02:26]} 51. Rdd3 {[%emt 0:00:12]} Kf6 {[%emt 0:01:33]} 52. Rde3 {[%emt 0:03:59]} Qc1 {[%emt 0:01:56]} 53. Kg3+ {[%emt 0:01:07]} Kg6 {[%emt 0:00:08]} 54. Rxa3 {[%emt 0:00:11]} Qxc4 {[%emt 0:02:49]} 55. Rad3 {[%emt 0:00:33]} Qe6 {[%emt 0:01:43]} 56. Rfe3 {[%emt 0:00:15]} Qc6 {[%emt 0:00:19]} 57. Re7 {[%emt 0:00:53]} c4 {[%emt 0:01:08]} 58. Rdd7 {[%emt 0:00:41]} Qf6 {[%emt 0:01:28]} 59. h4 {[%emt 0:01:32]} Qc3+ {[%emt 0:00:13]} 60. Kf4 {[%emt 0:00:09]} Qc1+ {[%emt 0:00:54]} 61. Ke4 {[%emt 0:00:39]} Qh1+ {[%emt 0:00:26]} 62. Ke5 {[%emt 0:01:30]} Qh2+ {[%emt 0:02:13]} 63. Kd4 {[%emt 0:00:40]} Qxh4 {[%emt 0:01:15]} 64. Re6+ {[%emt 0:00:37]} Kg5 {[%emt 0:00:06]} 65. Rd5+ {[%emt 0:00:11]} Kf4 {[%emt 0:00:05]} 66. Re4+ {[%emt 0:00:25]} Kg3 {[%emt 0:01:00]} 67. Kxc4 {[%emt 0:00:18]} Qh1 {[%emt 0:00:40]} 68. Rd3+ {[%emt 0:01:11]} Kh4 {[%emt 0:00:20]} 69. Rdd4 {[%emt 0:00:27]} Qc1+ {[%emt 0:00:20]} 70. Kd5 {[%emt 0:00:34]} Qc5+ {[%emt 0:00:07]} 71. Ke6 {[%emt 0:00:05]} Qc6+ {[%emt 0:00:13]} 72. Ke5 {[%emt 0:00:29]} Qc5+ {[%emt 0:00:28]} 73. Rd5 {[%emt 0:00:28]} Qe7+ {[%emt 0:00:13]} 74. Kd4 {[%emt 0:00:34]} Qb4+ {[%emt 0:00:03]} 75. Ke3 {[%emt 0:00:13]} Qc3+ {[%emt 0:00:37]} 76. Kf4 {[%emt 0:00:57]} Qf6+ {[%emt 0:00:14]} 77. Ke3 {[%emt 0:00:16]} Qc3+ {[%emt 0:00:04]} 78. Rd3 {[%emt 0:00:07]} Qc1+ {[%emt 0:00:35]} 79. Rd2 {[%emt 0:00:22]} Qe1+ {[%emt 0:00:22]} 80. Kd3 {[%emt 0:00:12]} Qb1+ {[%emt 0:00:04]} 81. Kd4 {[%emt 0:00:21]} Qb4+ {[%emt 0:00:08]} 82. Ke3 {[%emt 0:00:08]} Qc5+ {[%emt 0:00:14]} 83. Ke2 {[%emt 0:00:19]} Qb5+ {[%emt 0:00:08]} 84. Kf2 {[%emt 0:00:44]} Qc5+ {[%emt 0:00:28]} 85. Kf1 {[%emt 0:00:44]} Qc1+ {[%emt 0:01:47]} 86. Ke2 {[%emt 0:00:08]} Qc6 {[%emt 0:00:40]} 87. Red4 {[%emt 0:00:23]} Qe6+ {[%emt 0:01:01]} 88. Kf2 {[%emt 0:00:28]} Qf6+ {[%emt 0:01:06]} 89. Kg2 {[%emt 0:00:17]} Qc6+ {[%emt 0:01:02]} 90. Rd5 {[%emt 0:00:09]} b5 {[%emt 0:01:03]} 91. R2d4 {[%emt 0:02:07]} Qc2+ {[%emt 0:00:24]} 92. Kf3 {[%emt 0:00:10]} Qc3+ {[%emt 0:00:10]} 93. Kf4 {[%emt 0:00:23]} Qc7+ {[%emt 0:00:27]} 94. Rd6 {[%emt 0:00:30]} Qc1+ {[%emt 0:01:22]} 95. Kf5 {[%emt 0:00:45]} Qg5+ {[%emt 0:00:15]} 96. Ke6 {[%emt 0:00:11]} Kg3 {[%emt 0:02:04]} 97. Kf7 {[%emt 0:00:49]} Kh4 {[%emt 0:01:47]} 98. R6d5 {[%emt 0:00:13]} Qc1 {[%emt 0:00:16]} 99. g5+ {[%emt 0:00:16]} Kh3 {[%emt 0:00:16]} 100. g6 {[%emt 0:00:16]} Qf1+ {[%emt 0:00:23]} 101. Kg8 {[%emt 0:00:26]} Qf6 {[%emt 0:00:25]} 102. Kh7 {[%emt 0:01:25]} b4 {[%emt 0:00:35]} 103. g7 {[%emt 0:00:09]} Qf7 {[%emt 0:00:06]} 104. Kh8 {[%emt 0:00:19]} Qf6 {[%emt 0:00:03]} 105. Rd6 {[%emt 0:00:14]} Qe5 {[%emt 0:00:08]} 106. R4d5 {[%emt 0:00:28]} Qa1 {[%emt 0:00:49]} 107. Rd4 {[%emt 0:00:47]} 1-0